fUSD/lending_fUSD_20250214
["ID","MTS","AMOUNT","RATE_DAILY","PERIOD"]
[353118835,1739566283006,-2232.76,0.00014027,2]
[353118836,1739566283016,-643.31,0.00014027,2]
[353118837,1739566283026,-539.61,0.00014027,2]
[353118838,1739566283047,-1959.93,0.00014027,2]
[353118839,1739566283059,-607.81,0.00014027,2]
[353118840,1739566283070,-500.0,0.00014027,2]
[353118841,1739566283081,-1505.1,0.00014027,2]
[353118842,1739566283092,-8241.8,0.00014027,2]
[353118843,1739566283101,-1325.07,0.00014027,2]
[353118844,1739566283112,-500.0,0.00014027,2]
[353118845,1739566283122,-886.49,0.00014027,2]
[353118846,1739566283132,-1367.66,0.00014027,2]
[353118847,1739566283142,-500.0,0.00014027,2]
[353118848,1739566283152,-731.34,0.00014027,2]
[353118849,1739566283162,-796.57,0.00014027,2]
[353118850,1739566283172,-500.0,0.00014027,2]
[353118851,1739566283182,-500.0,0.00014027,2]
[353118852,1739566283192,-719.16,0.00014027,2]
[353118853,1739566283204,-660.92,0.00014027,2]
[353118854,1739566283213,-2622.2,0.00014027,2]
[353118855,1739566283224,-500.0,0.00014027,2]
[353118856,1739566283233,-899.83,0.00014027,2]
[353118857,1739566283243,-3674.69,0.00014027,2]
[353118858,1739566283253,-2330.47,0.00014027,2]
[353118859,1739566283263,-1508.59,0.00014027,2]
[353118860,1739566283272,-860.46,0.00014027,2]
[353118861,1739566283286,-4851.48,0.00014027,2]
[353118862,1739566283295,-500.0,0.00014027,2]
[353118863,1739566283305,-3084.92,0.00014027,2]
[353118864,1739566283316,-500.0,0.00014027,2]
[353118865,1739566283326,-667.69,0.00014027,2]
[353118866,1739566283335,-1520.32,0.00014027,2]
[353118867,1739566283346,-569.14,0.00014027,2]
[353118868,1739566283356,-500.0,0.00014027,2]
[353118869,1739566283366,-883.89,0.00014027,2]
[353118870,1739566283377,-1295.15,0.00014027,2]
[353118871,1739566283386,-1976.66,0.00014027,2]
[353118872,1739566283397,-500.0,0.00014027,2]
[353118873,1739566283408,-1194.78,0.00014027,2]
[353118874,1739566283417,-1135.37,0.00014027,2]
[353118875,1739566283427,-500.0,0.00014027,2]
[353118876,1739566283437,-3133.2,0.00014027,2]
[353118877,1739566283447,-2227.17,0.00014027,2]
[353118878,1739566283457,-348.88,0.00014027,2]
[353118879,1739566283466,-500.0,0.00014027,2]
[353118880,1739566283476,-1929.53,0.00014027,2]
[353118881,1739566283485,-802.32,0.00014027,2]
[353118882,1739566283495,-519.05,0.00014027,2]
[353118883,1739566283504,-512.94134718,0.00014027,2]
[353118884,1739566283514,-1248.93,0.00014027,2]
[353118885,1739566283524,-688.14,0.00014027,2]
[353118886,1739566283533,-1861.87,0.00014027,2]
[353118887,1739566283549,-438.09025724,0.00014027,2]
[353118888,1739566283559,-500.0,0.00014027,2]
[353118889,1739566283571,-662.93,0.00014027,2]
[353118890,1739566283581,-684.97,0.00014027,2]
[353118891,1739566283592,-517.09,0.00014027,2]
[353118892,1739566283603,-500.0,0.00014027,2]
[353118893,1739566283614,-1152.88,0.00014027,2]
[353118894,1739566283625,-1705.16,0.00014027,2]
[353118895,1739566283637,-500.0,0.00014027,2]
[353118896,1739566283648,-1236.6,0.00014027,2]
[353118897,1739566283659,-4024.19,0.00014027,2]
[353118898,1739566283669,-727.92,0.00014027,2]
[353118899,1739566283680,-1661.4,0.00014027,2]
[353118900,1739566283691,-1000.0,0.00014047,2]
[353118901,1739566283702,-762.49,0.00014053,2]
[353118902,1739566283712,-150.0,0.00014074,2]
[353118903,1739566283723,-150.0,0.00014079,2]
[353118904,1739566283734,-621.67,0.00014108,2]
[353118905,1739566283745,-621.67,0.00014108,2]
[353118906,1739566283756,-6128.58,0.00014108,2]
[353118907,1739566283768,-6128.58,0.00014108,2]
[353118908,1739566283779,-6128.58,0.00014108,2]
[353118909,1739566283791,-6128.58,0.00014108,2]
[353118910,1739566283802,-6128.58,0.00014108,2]
[353118911,1739566283814,-6128.72,0.00014108,2]
[353118912,1739566283825,-874.968359,0.00014109,2]
[353118913,1739566283835,-851.952662,0.00014109,2]
[353118914,1739566283846,-150.298909,0.00014109,2]
[353118915,1739566283857,-500.0,0.00014109,2]
[353118916,1739566283868,-500.0,0.00014109,2]
[353118917,1739566283879,-500.0,0.00014109,2]
[353118918,1739566283890,-500.0,0.00014109,2]
[353118919,1739566283901,-500.0,0.00014109,2]
[353118920,1739566283912,-500.0,0.00014109,2]
[353118921,1739566283923,-500.0,0.00014109,2]
[353118922,1739566283934,-500.0,0.00014109,2]
[353118923,1739566283945,-500.0,0.00014109,2]
[353118924,1739566283956,-536.18,0.00014109,2]
[353118925,1739566283966,-500.0,0.00014109,2]
[353118926,1739566283978,-500.0,0.00014109,2]
[353118927,1739566283989,-500.0,0.00014109,2]
[353118928,1739566284000,-500.0,0.00014109,2]
[353118929,1739566284011,-503.69,0.00014109,2]
[353118930,1739566284022,-500.0,0.00014109,2]
[353118931,1739566284034,-500.0,0.00014109,2]
[353118932,1739566284049,-500.0,0.00014109,2]
[353118933,1739566284062,-500.0,0.00014109,2]
[353118934,1739566284073,-500.0,0.00014109,2]
[353118935,1739566284084,-506.51,0.00014109,2]
[353118936,1739566284096,-500.0,0.00014109,2]
[353118937,1739566284107,-500.0,0.00014109,2]
[353118938,1739566284119,-500.0,0.00014109,2]
[353118939,1739566284130,-500.0,0.00014109,2]
[353118940,1739566284141,-500.0,0.00014109,2]
[353118941,1739566284152,-558.31,0.00014109,2]
[353118942,1739566284163,-500.0,0.00014109,2]
[353118943,1739566284174,-500.0,0.00014109,2]
[353118944,1739566284185,-519.27,0.00014109,2]
[353118945,1739566284197,-500.0,0.00014109,2]
[353118946,1739566284211,-500.0,0.00014109,2]
[353118947,1739566284222,-500.0,0.00014109,2]
[353118948,1739566284234,-500.0,0.00014109,2]
[353118949,1739566284245,-1200.0,0.00014109,2]
[353118950,1739566284256,-512.74,0.00014109,2]
[353118951,1739566284266,-500.0,0.00014109,2]
[353118952,1739566284278,-757.95,0.00014109,2]
[353118953,1739566284289,-439.82202355,0.00014109,2]
[353118954,1739566284300,-565.76,0.00014109,2]
[353118955,1739566284312,-500.0,0.00014109,2]
[353118956,1739566284323,-500.0,0.00014109,2]
[353118957,1739566284333,-500.0,0.00014109,2]
[353118958,1739566284345,-500.0,0.00014109,2]
[353118959,1739566284356,-1107.64,0.00014109,2]
[353118960,1739566284367,-500.0,0.00014109,2]
[353118961,1739566284378,-500.0,0.00014109,2]
[353118962,1739566284389,-500.0,0.00014109,2]
[353118963,1739566284400,-500.0,0.00014109,2]
[353118964,1739566284411,-500.0,0.00014109,2]
[353118965,1739566284423,-536.38,0.00014109,2]
[353118966,1739566284434,-500.0,0.00014109,2]
[353118967,1739566284445,-617.81,0.00014109,2]
[353118968,1739566284456,-500.0,0.00014109,2]
[353118969,1739566284467,-587.28,0.00014109,2]
[353118970,1739566284477,-500.0,0.00014109,2]
[353118971,1739566284488,-750.15,0.00014109,2]
[353118972,1739566284499,-500.0,0.00014109,2]
[353118973,1739566284510,-2392.8,0.00014109,2]
[353118974,1739566284521,-591.54,0.00014109,2]
[353118975,1739566284531,-500.0,0.00014109,2]
[353118976,1739566284547,-500.0,0.00014109,2]
[353118977,1739566284557,-500.0,0.00014109,2]
[353118978,1739566284568,-583.03,0.00014109,2]
[353118979,1739566284580,-1274.03,0.00014109,2]
[353118980,1739566284591,-500.0,0.00014109,2]
[353118981,1739566284602,-500.0,0.00014109,2]
[353118982,1739566284613,-500.0,0.00014109,2]
[353118983,1739566284624,-800.51,0.00014109,2]
[353118984,1739566284635,-1788.5,0.00014109,2]
[353118985,1739566284647,-500.0,0.00014109,2]
[353118986,1739566284658,-500.0,0.00014109,2]
[353118987,1739566284668,-500.0,0.00014109,2]
[353118988,1739566284679,-1330.5,0.00014109,2]
[353118989,1739566284690,-500.0,0.00014109,2]
[353118990,1739566284702,-500.0,0.00014109,2]
[353118991,1739566284713,-500.0,0.00014109,2]
[353118992,1739566284723,-740.69,0.00014109,2]
[353118993,1739566284734,-500.0,0.00014109,2]
[353118994,1739566284746,-1124.22,0.00014109,2]
[353118995,1739566284757,-500.0,0.00014109,2]
[353118996,1739566284767,-548.51433314,0.00014109,2]
[353118997,1739566284778,-500.0,0.00014109,2]
[353118998,1739566284790,-500.0,0.00014109,2]
[353118999,1739566284803,-569.68,0.00014109,2]
[353119000,1739566284818,-500.0,0.00014109,2]
[353119001,1739566284830,-500.0,0.00014109,2]
[353119002,1739566284843,-500.0,0.00014109,2]
[353119003,1739566284856,-783.23,0.00014109,2]
[353119004,1739566284869,-1019.53,0.00014109,2]
[353119005,1739566284881,-1273.67,0.00014109,2]
[353119006,1739566284895,-500.0,0.00014109,2]
[353119007,1739566284908,-719.23,0.00014109,2]
[353119008,1739566284921,-1340.4,0.00014109,2]
[353119009,1739566284935,-500.0,0.00014109,2]
[353119010,1739566284947,-912.68,0.00014109,2]
[353119011,1739566284960,-892.96,0.00014109,2]
[353119012,1739566284972,-500.0,0.00014109,2]
[353119013,1739566284983,-500.0,0.00014109,2]
[353119014,1739566284996,-1331.32,0.00014109,2]
[353119015,1739566285008,-564.14,0.00014109,2]
[353119016,1739566285019,-558.34,0.00014109,2]
[353119017,1739566285030,-500.0,0.00014109,2]
[353119018,1739566285041,-500.0,0.00014109,2]
[353119019,1739566285052,-500.0,0.00014109,2]
[353119020,1739566285062,-513.62,0.00014109,2]
[353119021,1739566285079,-500.0,0.00014109,2]
[353119022,1739566285090,-678.74,0.00014109,2]
[353119023,1739566285102,-583.73,0.00014109,2]
[353119024,1739566285114,-1406.71,0.00014109,2]
[353119025,1739566285126,-500.0,0.00014109,2]
[353119026,1739566285137,-964.12,0.00014109,2]
[353119027,1739566285148,-793.22,0.00014109,2]
[353119028,1739566285160,-500.0,0.00014109,2]
[353119029,1739566285172,-1085.56,0.00014109,2]
[353119030,1739566285183,-500.0,0.00014109,2]
[353119031,1739566285196,-541.36,0.00014109,2]
[353119032,1739566285210,-667.26,0.00014109,2]
[353119033,1739566285222,-500.0,0.00014109,2]
[353119034,1739566285232,-673.36,0.00014109,2]
[353119035,1739566285244,-500.0,0.00014109,2]
[353119036,1739566285254,-1082.27,0.00014109,2]
[353119037,1739566285266,-500.0,0.00014109,2]
[353119038,1739566285277,-500.0,0.00014109,2]
[353119039,1739566285288,-533.8,0.00014109,2]
[353119040,1739566285300,-500.0,0.00014109,2]
[353119041,1739566285312,-735.54,0.00014109,2]
[353119042,1739566285326,-669.31,0.00014109,2]
[353119043,1739566285337,-500.0,0.00014109,2]
[353119044,1739566285348,-500.0,0.00014109,2]
[353119045,1739566285359,-500.0,0.00014109,2]
[353119046,1739566285370,-883.81,0.00014109,2]
[353119047,1739566285394,-500.0,0.00014109,2]
[353119048,1739566285407,-500.0,0.00014109,2]
[353119049,1739566285419,-1107.54,0.00014109,2]
[353119050,1739566285431,-1293.24,0.00014109,2]
[353119051,1739566285443,-925.37,0.00014109,2]
[353119052,1739566285455,-757.13,0.00014109,2]
[353119053,1739566285467,-500.0,0.00014109,2]
[353119054,1739566285479,-500.0,0.00014109,2]
[353119055,1739566285490,-868.29,0.00014109,2]
[353119056,1739566285501,-500.0,0.00014109,2]
[353119057,1739566285513,-500.0,0.00014109,2]
[353119058,1739566285524,-653.19,0.00014109,2]
[353119059,1739566285536,-534.17,0.00014109,2]
[353119060,1739566285549,-500.0,0.00014109,2]
[353119061,1739566285560,-631.96,0.00014109,2]
[353119062,1739566285575,-500.0,0.00014109,2]
[353119063,1739566285586,-818.28,0.00014109,2]
[353119064,1739566285597,-694.26,0.00014109,2]
[353119065,1739566285608,-500.0,0.00014109,2]
[353119066,1739566285619,-898.94,0.00014109,2]
[353119067,1739566285631,-897.15,0.00014109,2]
[353119068,1739566285644,-164.68488734,0.00014109,2]
[353119069,1739566285655,-500.0,0.00014109,2]
[353119070,1739566285666,-500.0,0.00014109,2]
[353119071,1739566285677,-621.48,0.00014109,2]
[353119072,1739566285690,-500.0,0.00014109,2]
[353119073,1739566285701,-738.99,0.00014109,2]
[353119074,1739566285712,-500.0,0.00014109,2]
[353119075,1739566285723,-500.0,0.00014109,2]
[353119076,1739566285736,-551.59,0.00014109,2]
[353119077,1739566285749,-1738.29,0.00014109,2]
[353119078,1739566285759,-537.31,0.00014109,2]
[353119079,1739566285771,-500.0,0.00014109,2]
[353119080,1739566285783,-644.46,0.00014109,2]
[353119081,1739566285795,-500.0,0.00014109,2]
[353119082,1739566285807,-681.31,0.00014109,2]
[353119083,1739566285820,-500.0,0.00014109,2]
[353119084,1739566285832,-518.76,0.00014109,2]
[353119085,1739566285844,-500.0,0.00014109,2]
[353119086,1739566285855,-500.0,0.00014109,2]
[353119087,1739566285866,-500.0,0.00014109,2]
[353119088,1739566285878,-1083.31,0.00014109,2]
[353119089,1739566285889,-500.0,0.00014109,2]
[353119090,1739566285901,-502.76,0.00014109,2]
[353119091,1739566285912,-508.01,0.00014109,2]
[353119092,1739566285924,-1023.77,0.00014109,2]
[353119093,1739566285935,-500.0,0.00014109,2]
[353119094,1739566285946,-573.89,0.00014109,2]
[353119095,1739566285958,-500.0,0.00014109,2]
[353119096,1739566285969,-500.0,0.00014109,2]
[353119097,1739566285980,-927.77,0.00014109,2]
[353119098,1739566285991,-616.63,0.00014109,2]
[353119099,1739566286002,-500.0,0.00014109,2]
[353119100,1739566286014,-500.0,0.00014109,2]
[353119101,1739566286026,-500.0,0.00014109,2]
[353119102,1739566286038,-1426.12,0.00014109,2]
[353119103,1739566286049,-1153.11,0.00014109,2]
[353119104,1739566286061,-626.41,0.00014109,2]
[353119105,1739566286075,-500.0,0.00014109,2]
[353119106,1739566286087,-1100.39,0.00014109,2]
[353119107,1739566286100,-583.6,0.00014109,2]
[353119108,1739566286395,-675.34,0.00014109,2]
[353119109,1739566286406,-966.1,0.00014109,2]
[353119110,1739566286417,-500.0,0.00014109,2]
[353119111,1739566286427,-500.0,0.00014109,2]
[353119112,1739566286437,-500.0,0.00014109,2]
[353119113,1739566286447,-500.0,0.00014109,2]
[353119114,1739566286457,-500.0,0.00014109,2]
[353119115,1739566286468,-942.55,0.00014109,2]
[353119116,1739566286477,-1213.1,0.00014109,2]
[353119117,1739566286488,-334.60562315,0.00014109,2]
[353119118,1739566286498,-863.9,0.00014109,2]
[353119119,1739566286508,-500.0,0.00014109,2]
[353119120,1739566286518,-500.0,0.00014109,2]
[353119121,1739566286528,-151.0,0.00014109,2]
[353119122,1739566286539,-500.0,0.00014109,2]
[353119123,1739566286550,-853.01,0.00014109,2]
[353119124,1739566286560,-507.29,0.00014109,2]
[353119125,1739566286573,-500.0,0.00014109,2]
[353119126,1739566286583,-850.74,0.00014109,2]
[353119127,1739566286593,-674.85,0.00014109,2]
[353119128,1739566286603,-1067.49,0.00014109,2]
[353119129,1739566286612,-614.03,0.00014109,2]
[353119130,1739566286623,-953.81,0.00014109,2]
[353119131,1739566286632,-936.1,0.00014109,2]
[353119132,1739566286643,-704.52,0.00014109,2]
[353119133,1739566286653,-151.0,0.00014109,2]
[353119134,1739566286663,-500.0,0.00014109,2]
[353119135,1739566286674,-1852.67,0.00014109,2]
[353119136,1739566286684,-500.0,0.00014109,2]
[353119137,1739566286694,-597.11,0.00014109,2]
[353119138,1739566286704,-2467.3,0.00014109,2]
[353119139,1739566286715,-2316.56,0.00014109,2]
[353119140,1739566286725,-500.0,0.00014109,2]
[353119141,1739566286736,-500.0,0.00014109,2]
[353119142,1739566286745,-842.17,0.00014109,2]
[353119143,1739566286756,-385.48,0.00014109,2]
[353119144,1739566286766,-2018.88,0.00014109,2]
[353119145,1739566286776,-1346.43,0.00014109,2]
[353119146,1739566286786,-931.73,0.00014109,2]
[353119147,1739566286797,-500.0,0.00014109,2]
[353119148,1739566286807,-654.79,0.00014109,2]
[353119149,1739566286817,-592.75,0.00014109,2]
[353119150,1739566286827,-1316.77,0.00014109,2]
[353119151,1739566286837,-500.0,0.00014109,2]
[353119152,1739566286847,-1311.38,0.00014109,2]
[353119153,1739566286857,-1927.46,0.00014109,2]
[353119154,1739566286868,-500.0,0.00014109,2]
[353119155,1739566286878,-1226.1,0.00014109,2]
[353119156,1739566286888,-1497.33,0.00014109,2]
[353119157,1739566286898,-409.84049513,0.00014109,2]
[353119158,1739566286908,-1983.45,0.00014109,2]
[353119159,1739566286918,-1529.01,0.00014109,2]
[353119160,1739566286928,-2406.51,0.00014109,2]
[353119161,1739566286938,-670.85,0.00014109,2]
[353119162,1739566286949,-503.07,0.00014109,2]
[353119163,1739566286958,-514.11,0.00014109,2]
[353119164,1739566286969,-701.6,0.00014109,2]
[353119165,1739566286978,-1219.04,0.00014109,2]
[353119166,1739566286989,-2433.16,0.00014109,2]
[353119167,1739566286999,-1086.21,0.00014109,2]
[353119168,1739566287009,-1332.76,0.00014109,2]
[353119169,1739566287020,-500.0,0.00014109,2]
[353119170,1739566287030,-500.0,0.00014109,2]
[353119171,1739566287040,-1041.19,0.00014109,2]
[353119172,1739566287050,-500.0,0.00014109,2]
[353119173,1739566287060,-500.0,0.00014109,2]
[353119174,1739566287072,-1357.25,0.00014109,2]
[353119175,1739566287082,-1158.9,0.00014109,2]
[353119176,1739566287093,-1814.98,0.00014109,2]
[353119177,1739566287103,-3315.84,0.00014109,2]
[353119178,1739566287113,-153.14856407,0.00014109,2]
[353119179,1739566287123,-1092.63,0.00014109,2]
[353119180,1739566287133,-1307.26,0.00014109,2]
[353119181,1739566287143,-1239.09,0.00014109,2]
[353119182,1739566287153,-1164.5,0.00014109,2]
[353119183,1739566287163,-1608.88,0.00014109,2]
[353119184,1739566287173,-500.0,0.00014109,2]
[353119185,1739566287183,-500.0,0.00014109,2]
[353119186,1739566287194,-1805.89,0.00014109,2]
[353119187,1739566287206,-2219.87,0.00014109,2]
[353119188,1739566287216,-1235.55,0.00014109,2]
[353119189,1739566287226,-604.24,0.00014109,2]
[353119190,1739566287236,-1082.39,0.00014109,2]
[353119191,1739566287247,-2116.85,0.00014109,2]
[353119192,1739566287257,-500.0,0.00014109,2]
[353119193,1739566287267,-500.0,0.00014109,2]
[353119194,1739566287276,-661.33,0.00014109,2]
[353119195,1739566287288,-2112.18,0.00014109,2]
[353119196,1739566287298,-500.0,0.00014109,2]
[353119197,1739566287309,-500.0,0.00014109,2]
[353119198,1739566287320,-1872.0,0.00014109,2]
[353119199,1739566287330,-1558.85,0.00014109,2]
[353119200,1739566287340,-1157.73,0.00014109,2]
[353119201,1739566287350,-500.0,0.00014109,2]
[353119202,1739566287359,-699.76,0.00014109,2]
[353119203,1739566287368,-2970.66,0.00014109,2]
[353119204,1739566287378,-492.34,0.00014109,2]
[353119205,1739566287388,-508.25,0.00014109,2]
[353119206,1739566287398,-500.0,0.00014109,2]
[353119207,1739566287408,-586.78,0.00014109,2]
[353119208,1739566287418,-500.0,0.00014109,2]
[353119209,1739566287428,-929.92,0.00014109,2]
[353119210,1739566287438,-500.0,0.00014109,2]
[353119211,1739566287454,-635.89,0.00014109,2]
[353119212,1739566287465,-581.03,0.00014109,2]
[353119213,1739566287475,-2913.77,0.00014109,2]
[353119214,1739566287486,-500.0,0.00014109,2]
[353119215,1739566287497,-4186.79,0.00014109,2]
[353119216,1739566287507,-902.65,0.00014109,2]
[353119217,1739566287518,-1399.17,0.00014109,2]
[353119218,1739566287528,-2196.62,0.00014109,2]
[353119219,1739566287538,-500.0,0.00014109,2]
[353119220,1739566287548,-500.0,0.00014109,2]
[353119221,1739566287559,-2628.96,0.00014109,2]
[353119222,1739566287570,-1928.84,0.00014109,2]
[353119223,1739566287581,-1158.56,0.00014109,2]
[353119224,1739566287591,-1153.76,0.00014109,2]
[353119225,1739566287602,-1479.96,0.00014109,2]
[353119226,1739566287614,-739.42,0.00014109,2]
[353119227,1739566287627,-500.0,0.00014109,2]
[353119228,1739566287638,-1028.48,0.00014109,2]
[353119229,1739566287649,-1597.62,0.00014109,2]
[353119230,1739566287660,-500.0,0.00014109,2]
[353119231,1739566287670,-1906.43,0.00014109,2]
[353119232,1739566287680,-3241.0,0.00014109,2]
[353119233,1739566287691,-151.0,0.00014109,2]
[353119234,1739566287703,-816.33,0.00014109,2]
[353119235,1739566287714,-500.0,0.00014109,2]
[353119236,1739566287725,-849.22,0.00014109,2]
[353119237,1739566287737,-1191.81,0.00014109,2]
[353119238,1739566287747,-1332.32,0.00014109,2]
[353119239,1739566287758,-939.58,0.00014109,2]
[353119240,1739566287769,-527.13,0.00014109,2]
[353119241,1739566287779,-500.0,0.00014109,2]
[353119242,1739566287790,-1257.55,0.00014109,2]
[353119243,1739566287800,-2807.42,0.00014109,2]
[353119244,1739566287810,-1704.06,0.00014109,2]
[353119245,1739566287823,-500.0,0.00014109,2]
[353119246,1739566287834,-2998.46,0.00014109,2]
[353119247,1739566287844,-556.02,0.00014109,2]
[353119248,1739566287854,-500.0,0.00014109,2]
[353119249,1739566287865,-2289.6,0.00014109,2]
[353119250,1739566287875,-712.61,0.00014109,2]
[353119251,1739566287886,-1979.01,0.00014109,2]
[353119252,1739566287896,-1375.26,0.00014109,2]
[353119253,1739566287906,-2871.06,0.00014109,2]
[353119254,1739566287916,-3197.44,0.00014109,2]
[353119255,1739566287927,-1256.84,0.00014109,2]
[353119256,1739566287937,-500.0,0.00014109,2]
[353119257,1739566287947,-615.54,0.00014109,2]
[353119258,1739566287963,-500.0,0.00014109,2]
[353119259,1739566287974,-808.016187,0.00014109,2]
[353119260,1739566287984,-500.0,0.00014109,2]
[353119261,1739566287995,-500.0,0.00014109,2]
[353119262,1739566288006,-808.016187,0.00014109,2]
[353119263,1739566288016,-500.0,0.00014109,2]
[353119264,1739566288027,-1359.06,0.00014109,2]
[353119265,1739566288038,-1995.79,0.00014109,2]
[353119266,1739566288048,-2330.96,0.00014109,2]
[353119267,1739566288059,-506.51105503,0.00014109,2]
[353119268,1739566288072,-10858.08,0.00014109,2]
[353119269,1739566288082,-907.98,0.00014109,2]
[353119270,1739566288093,-500.0,0.00014109,2]
[353119271,1739566288104,-500.0,0.00014109,2]
[353119272,1739566288114,-729.91,0.00014109,2]
[353119273,1739566288124,-531.25,0.00014109,2]
[353119274,1739566288135,-500.0,0.00014109,2]
[353119275,1739566288145,-524.39,0.00014109,2]
[353119276,1739566288155,-1278.12,0.00014109,2]
[353119277,1739566288166,-534.03,0.00014109,2]
[353119278,1739566288177,-925.72,0.00014109,2]
[353119279,1739566288188,-2822.56,0.00014109,2]
[353119280,1739566288199,-1717.5,0.00014109,2]
[353119281,1739566288213,-2435.86,0.00014109,2]
[353119282,1739566288223,-500.0,0.00014109,2]
[353119283,1739566288233,-500.0,0.00014109,2]
[353119284,1739566288246,-500.0,0.00014109,2]
[353119285,1739566288255,-1647.15,0.00014109,2]
[353119286,1739566288266,-760.05,0.00014109,2]
[353119287,1739566288275,-2378.56,0.00014109,2]
[353119288,1739566288287,-500.0,0.00014109,2]
[353119289,1739566288297,-2543.87,0.00014109,2]
[353119290,1739566288307,-1674.92,0.00014109,2]
[353119291,1739566288317,-2943.72,0.00014109,2]
[353119292,1739566288327,-605.91,0.00014109,2]
[353119293,1739566288337,-655.62,0.00014109,2]
[353119294,1739566288347,-500.0,0.00014109,2]
[353119295,1739566288359,-500.0,0.00014109,2]
[353119296,1739566288372,-500.0,0.00014109,2]
[353119297,1739566288382,-5616.87,0.00014109,2]
[353119298,1739566288392,-3193.42,0.00014109,2]
[353119299,1739566288402,-1726.03,0.00014109,2]
[353119300,1739566288412,-2562.68,0.00014109,2]
[353119301,1739566288421,-2524.45,0.00014109,2]
[353119302,1739566288432,-3694.54,0.00014109,2]
[353119303,1739566288442,-169.64509667,0.00014109,2]
[353119304,1739566288452,-500.0,0.00014109,2]
[353119305,1739566288462,-2033.18,0.00014109,2]
[353119306,1739566288476,-550.44,0.00014109,2]
[353119307,1739566288486,-500.0,0.00014109,2]
[353119308,1739566288496,-2191.43,0.00014109,2]
[353119309,1739566288506,-645.64,0.00014109,2]
[353119310,1739566288516,-507.37843252,0.00014109,2]
[353119311,1739566288525,-2232.76,0.00014109,2]
[353119312,1739566288535,-643.31,0.00014109,2]
[353119313,1739566288545,-539.61,0.00014109,2]
[353119314,1739566288555,-1959.93,0.00014109,2]
[353119315,1739566288567,-607.81,0.00014109,2]
[353119316,1739566288578,-500.0,0.00014109,2]
[353119317,1739566288588,-1505.1,0.00014109,2]
[353119318,1739566288598,-8241.8,0.00014109,2]
[353119319,1739566288608,-1325.07,0.00014109,2]
[353119320,1739566288619,-500.0,0.00014109,2]
[353119321,1739566288629,-886.49,0.00014109,2]
[353119322,1739566288638,-1367.66,0.00014109,2]
[353119323,1739566288648,-500.0,0.00014109,2]
[353119324,1739566288658,-731.34,0.00014109,2]
[353119325,1739566288668,-796.57,0.00014109,2]
[353119326,1739566288678,-500.0,0.00014109,2]
[353119327,1739566288688,-500.0,0.00014109,2]
[353119328,1739566288698,-719.16,0.00014109,2]
[353119329,1739566288708,-660.92,0.00014109,2]
[353119330,1739566288717,-2622.2,0.00014109,2]
[353119331,1739566288728,-500.0,0.00014109,2]
[353119332,1739566288739,-899.83,0.00014109,2]
[353119333,1739566288749,-3674.69,0.00014109,2]
[353119334,1739566288760,-1508.59,0.00014109,2]